[Event "Titled Tuesday Blitz October 04 Early 2022"]
[White "Domingo Nunez, Alejandro"]
[Black "Terry, Renato"]
[WhiteFideId "22245561"]
[BlackFideId "3803457"]
[WhiteElo "2242"]
[BlackElo "2577"]
[Result "1/2-1/2"]
[Round "02"]
[TimeControl "180+1"]
[Date "2022.10.04"]
[WhiteClock "0:00:13"]
[BlackClock "0:00:09"]

1. Nf3 {[%clk 0:03:00]}  Nf6 {[%clk 0:02:58]} 2. g3 {[%clk 0:03:01]}  d5 {[%clk 0:02:58]} 3. Bg2 {[%clk 0:03:01]}  c6 {[%clk 0:02:59]} 4. O-O {[%clk 0:03:01]}  Bg4 {[%clk 0:02:59]} 5. h3 {[%clk 0:03:01]}  Bh5 {[%clk 0:02:59]} 6. d3 {[%clk 0:03:01]}  Nbd7 {[%clk 0:02:59]} 7. Qe1 {[%clk 0:02:59]}  e5 {[%clk 0:02:59]} 8. e4 {[%clk 0:02:59]}  dxe4 {[%clk 0:03:00]} 9. dxe4 {[%clk 0:03:00]}  Be7 {[%clk 0:03:00]} 10. Nh4 {[%clk 0:03:00]}  O-O {[%clk 0:03:00]} 11. a4 {[%clk 0:02:58]}  Re8 {[%clk 0:03:00]} 12. a5 {[%clk 0:02:57]}  Nc5 {[%clk 0:03:00]} 13. Nd2 {[%clk 0:02:55]}  Qc7 {[%clk 0:02:57]} 14. Nc4 {[%clk 0:02:55]}  Ne6 {[%clk 0:02:52]} 15. c3 {[%clk 0:02:54]}  b5 {[%clk 0:02:48]} 16. axb6 {[%clk 0:02:16]}  axb6 {[%clk 0:02:49]} 17. Rxa8 {[%clk 0:02:16]}  Rxa8 {[%clk 0:02:50]} 18. Be3 {[%clk 0:02:15]}  b5 {[%clk 0:02:50]} 19. Nd2 {[%clk 0:02:13]}  Nc5 {[%clk 0:02:47]} 20. g4 {[%clk 0:02:01]}  Bg6 {[%clk 0:02:46]} 21. Nf5 {[%clk 0:02:01]}  Bf8 {[%clk 0:02:45]} 22. Qb1 {[%clk 0:01:37]}  h5 {[%clk 0:02:35]} 23. g5 {[%clk 0:01:34]}  Nfd7 {[%clk 0:02:35]} 24. Nh4 {[%clk 0:01:33]}  Bh7 {[%clk 0:02:33]} 25. g6 {[%clk 0:01:34]}  Bxg6 {[%clk 0:02:30]} 26. Nxg6 {[%clk 0:01:34]}  fxg6 {[%clk 0:02:31]} 27. f4 {[%clk 0:01:35]}  exf4 {[%clk 0:02:31]} 28. Bxf4 {[%clk 0:01:34]}  Bd6 {[%clk 0:02:31]} 29. e5 {[%clk 0:01:34]}  Bxe5 {[%clk 0:02:29]} 30. Bxe5 {[%clk 0:01:32]}  Nxe5 {[%clk 0:02:29]} 31. Ne4 {[%clk 0:01:29]}  Ne6 {[%clk 0:02:27]} 32. Qe1 {[%clk 0:01:24]}  Rf8 {[%clk 0:02:21]} 33. Rxf8+ {[%clk 0:01:21]}  Kxf8 {[%clk 0:02:22]} 34. Qg3 {[%clk 0:01:18]}  Kf7 {[%clk 0:02:06]} 35. h4 {[%clk 0:01:16]}  Nc4 {[%clk 0:01:50]} 36. Ng5+ {[%clk 0:01:13]}  Ke7 {[%clk 0:01:45]} 37. Qf3 {[%clk 0:01:09]}  Nxg5 {[%clk 0:01:43]} 38. hxg5 {[%clk 0:01:09]}  Ne5 {[%clk 0:01:35]} 39. Qf4 {[%clk 0:01:02]}  Ke6 {[%clk 0:01:28]} 40. Bh3+ {[%clk 0:01:01]}  Ke7 {[%clk 0:01:25]} 41. Qe4 {[%clk 0:00:58]}  Qd6 {[%clk 0:01:23]} 42. Bf1 {[%clk 0:00:54]}  Qe6 {[%clk 0:01:21]} 43. Bg2 {[%clk 0:00:54]}  Qf5 {[%clk 0:01:10]} 44. Qe3 {[%clk 0:00:52]}  Kf7 {[%clk 0:01:06]} 45. Be4 {[%clk 0:00:32]}  Qg4+ {[%clk 0:01:05]} 46. Bg2 {[%clk 0:00:33]}  Ke6 {[%clk 0:00:54]} 47. Qa7 {[%clk 0:00:19]}  Qxg5 {[%clk 0:00:53]} 48. Qxg7 {[%clk 0:00:18]}  Qc1+ {[%clk 0:00:46]} 49. Kh2 {[%clk 0:00:19]}  Ng4+ {[%clk 0:00:47]} 50. Kg3 {[%clk 0:00:15]}  Qe3+ {[%clk 0:00:44]} 51. Kh4 {[%clk 0:00:15]}  Qf2+ {[%clk 0:00:38]} 52. Kh3 {[%clk 0:00:14]}  Qe3+ {[%clk 0:00:34]} 53. Kh4 {[%clk 0:00:14]}  Qe1+ {[%clk 0:00:35]} 54. Kh3 {[%clk 0:00:13]}  Nf2+ {[%clk 0:00:25]} 55. Kh2 {[%clk 0:00:13]}  Ng4+ {[%clk 0:00:13]} 56. Kh3 {[%clk 0:00:13]}  Qe3+ {[%clk 0:00:09]} 57. Kh4 {[%clk 0:00:13]} 1/2-1/2


[Site "https://www.chess.com"]

[Event "Titled Tuesday Blitz October 04 Early 2022"]
[White "Eljanov, Pavel"]
[Black "Shuvalova, Polina"]
[WhiteFideId "14102951"]
[BlackFideId "24171760"]
[WhiteElo "2601"]
[BlackElo "2392"]
[Result "1/2-1/2"]
[Round "02"]
[TimeControl "180+1"]
[Date "2022.10.04"]
[WhiteClock "0:00:15"]
[BlackClock "0:00:02"]

1. c4 {[%clk 0:03:00]}  e6 {[%clk 0:02:58]} 2. Nf3 {[%clk 0:02:59]}  d5 {[%clk 0:02:58]} 3. g3 {[%clk 0:03:00]}  Nf6 {[%clk 0:02:59]} 4. Bg2 {[%clk 0:03:00]}  dxc4 {[%clk 0:02:58]} 5. Qa4+ {[%clk 0:03:00]}  Nbd7 {[%clk 0:02:58]} 6. Qxc4 {[%clk 0:02:58]}  c5 {[%clk 0:02:54]} 7. d3 {[%clk 0:02:58]}  Be7 {[%clk 0:02:52]} 8. a4 {[%clk 0:02:53]}  O-O {[%clk 0:02:52]} 9. Qb3 {[%clk 0:02:53]}  Qc7 {[%clk 0:02:25]} 10. Na3 {[%clk 0:02:47]}  a6 {[%clk 0:02:20]} 11. Nc4 {[%clk 0:02:38]}  Nd5 {[%clk 0:02:16]} 12. a5 {[%clk 0:02:33]}  N7f6 {[%clk 0:02:11]} 13. O-O {[%clk 0:02:30]}  Bd7 {[%clk 0:02:11]} 14. Bd2 {[%clk 0:02:26]}  Bc6 {[%clk 0:02:00]} 15. Rfc1 {[%clk 0:02:20]}  Rac8 {[%clk 0:01:53]} 16. Nfe5 {[%clk 0:02:14]}  Rfd8 {[%clk 0:01:46]} 17. Nxc6 {[%clk 0:02:11]}  Qxc6 {[%clk 0:01:41]} 18. d4 {[%clk 0:01:33]}  Qe8 {[%clk 0:01:29]} 19. dxc5 {[%clk 0:01:06]}  Rxc5 {[%clk 0:01:12]} 20. e4 {[%clk 0:01:04]}  Rb5 {[%clk 0:01:09]} 21. Qa4 {[%clk 0:00:57]}  Nb4 {[%clk 0:01:07]} 22. Be3 {[%clk 0:00:50]}  Nd3 {[%clk 0:00:54]} 23. Rd1 {[%clk 0:00:50]}  Nxb2 {[%clk 0:00:48]} 24. Nxb2 {[%clk 0:00:47]}  Rxb2 {[%clk 0:00:49]} 25. Qxe8+ {[%clk 0:00:42]}  Rxe8 {[%clk 0:00:43]} 26. Rac1 {[%clk 0:00:41]}  Bb4 {[%clk 0:00:37]} 27. e5 {[%clk 0:00:39]}  Nd5 {[%clk 0:00:37]} 28. Bxd5 {[%clk 0:00:39]}  exd5 {[%clk 0:00:37]} 29. Rxd5 {[%clk 0:00:40]}  Ra2 {[%clk 0:00:35]} 30. Bb6 {[%clk 0:00:40]}  h5 {[%clk 0:00:21]} 31. Rc7 {[%clk 0:00:39]}  h4 {[%clk 0:00:22]} 32. gxh4 {[%clk 0:00:38]}  Re6 {[%clk 0:00:20]} 33. Rd8+ {[%clk 0:00:32]}  Kh7 {[%clk 0:00:20]} 34. Rxf7 {[%clk 0:00:32]}  Bxa5 {[%clk 0:00:07]} 35. Be3 {[%clk 0:00:27]}  Rg6+ {[%clk 0:00:02]} 36. Kf1 {[%clk 0:00:27]}  Bxd8 {[%clk 0:00:03]} 37. h5 {[%clk 0:00:27]}  Rg4 {[%clk 0:00:02]} 38. h6 {[%clk 0:00:25]}  Kg8 {[%clk 0:00:01]} 39. Rd7 {[%clk 0:00:25]}  Bb6 {[%clk 0:00:01]} 40. Bxb6 {[%clk 0:00:24]}  gxh6 {[%clk 0:00:02]} 41. e6 {[%clk 0:00:24]}  Ra1+ {[%clk 0:00:02]} 42. Ke2 {[%clk 0:00:24]}  Re4+ {[%clk 0:00:03]} 43. Be3 {[%clk 0:00:24]}  Rxe6 {[%clk 0:00:03]} 44. Rxb7 {[%clk 0:00:24]}  Ra2+ {[%clk 0:00:02]} 45. Kf3 {[%clk 0:00:24]}  a5 {[%clk 0:00:02]} 46. Ra7 {[%clk 0:00:24]}  Rf6+ {[%clk 0:00:03]} 47. Kg4 {[%clk 0:00:24]}  Rf7 {[%clk 0:00:04]} 48. Ra6 {[%clk 0:00:23]}  a4 {[%clk 0:00:02]} 49. Rxh6 {[%clk 0:00:22]}  a3 {[%clk 0:00:02]} 50. Ra6 {[%clk 0:00:21]}  Ra1 {[%clk 0:00:01]} 51. Bd4 {[%clk 0:00:16]}  Ra2 {[%clk 0:00:01]} 52. h4 {[%clk 0:00:16]}  Rd7 {[%clk 0:00:01]} 53. Be5 {[%clk 0:00:15]}  Rd3 {[%clk 0:00:02]} 54. f4 {[%clk 0:00:15]}  Rg2+ {[%clk 0:00:02]} 55. Kf5 {[%clk 0:00:15]}  a2 {[%clk 0:00:02]} 56. h5 {[%clk 0:00:14]}  Rh2 {[%clk 0:00:02]} 57. Ra8+ {[%clk 0:00:15]}  Kf7 {[%clk 0:00:02]} 58. Ra7+ {[%clk 0:00:15]}  Ke8 {[%clk 0:00:03]} 59. Kg6 {[%clk 0:00:15]}  Rg3+ {[%clk 0:00:03]} 60. Kf6 {[%clk 0:00:15]}  Rxh5 {[%clk 0:00:03]} 61. Ke6 {[%clk 0:00:15]}  Rg6+ {[%clk 0:00:03]} 62. Bf6 {[%clk 0:00:15]}  Rxf6+ {[%clk 0:00:02]} 63. Kxf6 {[%clk 0:00:16]}  Rh2 {[%clk 0:00:02]} 64. f5 {[%clk 0:00:16]}  Rb2 {[%clk 0:00:01]} 65. Ra8+ {[%clk 0:00:16]}  Kd7 {[%clk 0:00:01]} 66. Kf7 {[%clk 0:00:17]}  Rf2 {[%clk 0:00:02]} 67. f6 {[%clk 0:00:17]}  Kc7 {[%clk 0:00:03]} 68. Kg7 {[%clk 0:00:17]}  Kb7 {[%clk 0:00:03]} 69. Ra3 {[%clk 0:00:17]}  Kb6 {[%clk 0:00:01]} 70. f7 {[%clk 0:00:17]}  Rg2+ {[%clk 0:00:02]} 71. Kf8 {[%clk 0:00:17]}  Kb5 {[%clk 0:00:01]} 72. Ke8 {[%clk 0:00:17]}  Re2+ {[%clk 0:00:02]} 73. Kd7 {[%clk 0:00:16]}  Rf2 {[%clk 0:00:02]} 74. Ke6 {[%clk 0:00:16]}  Re2+ {[%clk 0:00:02]} 75. Kd6 {[%clk 0:00:16]}  Rf2 {[%clk 0:00:03]} 76. Ke6 {[%clk 0:00:15]}  Re2+ {[%clk 0:00:02]} 77. Kd6 {[%clk 0:00:15]}  Rf2 {[%clk 0:00:02]} 78. Ke6 {[%clk 0:00:15]} 1/2-1/2


[Site "https://www.chess.com"]

[Event "Titled Tuesday Blitz October 04 Early 2022"]
[White "Hakobyan, Aram"]
[Black "Garcia Ramos, Daniel"]
[WhiteFideId "13306677"]
[BlackFideId "32010311"]
[WhiteElo "2563"]
[BlackElo "2357"]
[Result "1-0"]
[Round "02"]
[TimeControl "180+1"]
[Date "2022.10.04"]
[WhiteClock "0:00:17"]
[BlackClock "0:00:03"]

1. e4 {[%clk 0:03:00]}  c6 {[%clk 0:02:57]} 2. Nf3 {[%clk 0:02:57]}  d5 {[%clk 0:02:58]} 3. exd5 {[%clk 0:02:58]}  cxd5 {[%clk 0:02:58]} 4. d4 {[%clk 0:02:59]}  Nc6 {[%clk 0:02:58]} 5. c3 {[%clk 0:03:00]}  Nf6 {[%clk 0:02:58]} 6. Ne5 {[%clk 0:03:00]}  a6 {[%clk 0:02:55]} 7. Nd2 {[%clk 0:02:57]}  Bf5 {[%clk 0:02:55]} 8. Qa4 {[%clk 0:02:39]}  Qc8 {[%clk 0:02:43]} 9. Ndf3 {[%clk 0:02:37]}  e6 {[%clk 0:02:40]} 10. Nxc6 {[%clk 0:02:38]}  Qxc6 {[%clk 0:02:39]} 11. Qd1 {[%clk 0:02:27]}  Bd6 {[%clk 0:02:36]} 12. Bd3 {[%clk 0:02:26]}  Bg6 {[%clk 0:02:27]} 13. O-O {[%clk 0:02:26]}  O-O {[%clk 0:02:26]} 14. Bxg6 {[%clk 0:02:26]}  hxg6 {[%clk 0:02:26]} 15. Ng5 {[%clk 0:02:27]}  e5 {[%clk 0:02:17]} 16. dxe5 {[%clk 0:02:26]}  Bxe5 {[%clk 0:02:18]} 17. Be3 {[%clk 0:02:25]}  Rfe8 {[%clk 0:02:16]} 18. Qf3 {[%clk 0:02:19]}  Rad8 {[%clk 0:02:06]} 19. Rad1 {[%clk 0:02:17]}  Qc4 {[%clk 0:02:02]} 20. a3 {[%clk 0:02:07]}  b5 {[%clk 0:01:51]} 21. h3 {[%clk 0:02:00]}  Rd7 {[%clk 0:01:39]} 22. Bd4 {[%clk 0:01:58]}  Rde7 {[%clk 0:01:35]} 23. g3 {[%clk 0:01:45]}  Bxd4 {[%clk 0:01:21]} 24. Rxd4 {[%clk 0:01:46]}  Qe2 {[%clk 0:01:21]} 25. Rb1 {[%clk 0:01:14]}  Qc2 {[%clk 0:01:12]} 26. Qd3 {[%clk 0:01:06]}  Re1+ {[%clk 0:00:58]} 27. Rxe1 {[%clk 0:01:06]}  Rxe1+ {[%clk 0:00:59]} 28. Kg2 {[%clk 0:01:02]}  Qc1 {[%clk 0:00:49]} 29. Nf3 {[%clk 0:00:44]}  Re8 {[%clk 0:00:37]} 30. Qd2 {[%clk 0:00:41]}  Qb1 {[%clk 0:00:35]} 31. Rf4 {[%clk 0:00:39]}  Re4 {[%clk 0:00:22]} 32. Ng5 {[%clk 0:00:37]}  Re1 {[%clk 0:00:16]} 33. Nf3 {[%clk 0:00:37]}  Re4 {[%clk 0:00:17]} 34. b4 {[%clk 0:00:37]}  Rxf4 {[%clk 0:00:10]} 35. Qxf4 {[%clk 0:00:38]}  Qe4 {[%clk 0:00:10]} 36. Qd6 {[%clk 0:00:32]}  g5 {[%clk 0:00:09]} 37. Qxa6 {[%clk 0:00:28]}  g4 {[%clk 0:00:05]} 38. hxg4 {[%clk 0:00:29]}  Nxg4 {[%clk 0:00:06]} 39. Qxb5 {[%clk 0:00:23]}  Qc2 {[%clk 0:00:04]} 40. Qb6 {[%clk 0:00:15]}  Qe4 {[%clk 0:00:01]} 41. Qd8+ {[%clk 0:00:15]}  Kh7 {[%clk 0:00:01]} 42. Qh4+ {[%clk 0:00:15]}  Kg8 {[%clk 0:00:01]} 43. Qd8+ {[%clk 0:00:13]}  Kh7 {[%clk 0:00:01]} 44. Qg5 {[%clk 0:00:14]}  f6 {[%clk 0:00:01]} 45. Qf4 {[%clk 0:00:15]}  Qxf4 {[%clk 0:00:01]} 46. gxf4 {[%clk 0:00:15]}  Kg6 {[%clk 0:00:02]} 47. b5 {[%clk 0:00:16]}  Kf5 {[%clk 0:00:02]} 48. b6 {[%clk 0:00:17]}  Ke6 {[%clk 0:00:03]} 49. b7 {[%clk 0:00:17]} 1-0


[Site "https://www.chess.com"]

[Event "Titled Tuesday Blitz October 04 Early 2022"]
[White "Kevlishvili, Robby"]
[Black "Domingo Nunez, Ruben"]
[WhiteFideId "1040634"]
[BlackFideId "22245570"]
[WhiteElo "2585"]
[BlackElo "2406"]
[Result "1-0"]
[Round "02"]
[TimeControl "180+1"]
[Date "2022.10.04"]
[WhiteClock "0:01:16"]
[BlackClock "0:00:45"]

1. e4 {[%clk 0:03:00]}  g6 {[%clk 0:02:53]} 2. d4 {[%clk 0:02:58]}  Bg7 {[%clk 0:02:54]} 3. Nf3 {[%clk 0:02:57]}  c6 {[%clk 0:02:54]} 4. Nc3 {[%clk 0:02:55]}  d5 {[%clk 0:02:54]} 5. h3 {[%clk 0:02:56]}  dxe4 {[%clk 0:02:55]} 6. Nxe4 {[%clk 0:02:56]}  Nf6 {[%clk 0:02:56]} 7. Bd3 {[%clk 0:02:57]}  Qa5+ {[%clk 0:02:50]} 8. Bd2 {[%clk 0:02:53]}  Qb6 {[%clk 0:02:51]} 9. O-O {[%clk 0:02:52]}  O-O {[%clk 0:02:49]} 10. Nxf6+ {[%clk 0:02:44]}  exf6 {[%clk 0:02:49]} 11. a4 {[%clk 0:02:43]}  a5 {[%clk 0:02:49]} 12. c3 {[%clk 0:02:35]}  Be6 {[%clk 0:02:48]} 13. Re1 {[%clk 0:02:33]}  Na6 {[%clk 0:02:40]} 14. Qc1 {[%clk 0:02:20]}  Rfe8 {[%clk 0:02:36]} 15. Nh2 {[%clk 0:02:00]}  Rad8 {[%clk 0:02:20]} 16. Ng4 {[%clk 0:01:55]}  h5 {[%clk 0:02:10]} 17. Ne3 {[%clk 0:01:52]}  f5 {[%clk 0:01:59]} 18. Nc4 {[%clk 0:01:46]}  Bxc4 {[%clk 0:01:37]} 19. Rxe8+ {[%clk 0:01:47]}  Rxe8 {[%clk 0:01:37]} 20. Bxc4 {[%clk 0:01:48]}  c5 {[%clk 0:01:37]} 21. dxc5 {[%clk 0:01:40]}  Nxc5 {[%clk 0:01:37]} 22. Be3 {[%clk 0:01:33]}  Qc7 {[%clk 0:01:12]} 23. Bb5 {[%clk 0:01:27]}  Re4 {[%clk 0:00:59]} 24. Qc2 {[%clk 0:01:20]}  Bf8 {[%clk 0:00:51]} 25. Rd1 {[%clk 0:01:18]}  f4 {[%clk 0:00:44]} 26. Bxc5 {[%clk 0:01:17]}  Bxc5 {[%clk 0:00:45]} 27. Qxe4 {[%clk 0:01:16]} 1-0


[Site "https://www.chess.com"]

[Event "Titled Tuesday Blitz October 04 Early 2022"]
[White "Prokofiev, Valentyn"]
[Black "Safarli, Eltaj"]
[WhiteFideId "14160161"]
[BlackFideId "13402129"]
[WhiteElo "2259"]
[BlackElo "2634"]
[Result "1/2-1/2"]
[Round "02"]
[TimeControl "180+1"]
[Date "2022.10.04"]
[WhiteClock "0:00:03"]
[BlackClock "0:00:20"]

1. d4 {[%clk 0:03:00]}  Nf6 {[%clk 0:02:59]} 2. c4 {[%clk 0:03:01]}  e6 {[%clk 0:02:57]} 3. Nf3 {[%clk 0:03:01]}  b6 {[%clk 0:02:52]} 4. e3 {[%clk 0:03:01]}  Bb4+ {[%clk 0:02:47]} 5. Nbd2 {[%clk 0:02:53]}  Bb7 {[%clk 0:02:46]} 6. Bd3 {[%clk 0:02:53]}  O-O {[%clk 0:02:45]} 7. O-O {[%clk 0:02:53]}  Bxd2 {[%clk 0:02:45]} 8. Bxd2 {[%clk 0:02:53]}  d6 {[%clk 0:02:46]} 9. Qc2 {[%clk 0:02:42]}  Nbd7 {[%clk 0:02:40]} 10. Rad1 {[%clk 0:02:36]}  e5 {[%clk 0:02:37]} 11. dxe5 {[%clk 0:02:24]}  dxe5 {[%clk 0:02:38]} 12. Bf5 {[%clk 0:02:21]}  Qe7 {[%clk 0:02:34]} 13. Bc3 {[%clk 0:02:09]}  Rfe8 {[%clk 0:02:27]} 14. Rd2 {[%clk 0:01:33]}  g6 {[%clk 0:02:21]} 15. Bxd7 {[%clk 0:01:27]}  Nxd7 {[%clk 0:02:22]} 16. Rfd1 {[%clk 0:01:27]}  Bxf3 {[%clk 0:02:00]} 17. gxf3 {[%clk 0:01:18]}  Nf6 {[%clk 0:01:52]} 18. Qa4 {[%clk 0:01:14]}  Qe6 {[%clk 0:01:51]} 19. Kg2 {[%clk 0:01:11]}  e4 {[%clk 0:01:42]} 20. Bxf6 {[%clk 0:00:59]}  exf3+ {[%clk 0:01:38]} 21. Kxf3 {[%clk 0:00:59]}  Qxf6+ {[%clk 0:01:37]} 22. Kg2 {[%clk 0:00:58]}  Re5 {[%clk 0:01:30]} 23. Rd5 {[%clk 0:00:40]}  Rae8 {[%clk 0:01:27]} 24. Qd7 {[%clk 0:00:35]}  Rg5+ {[%clk 0:01:15]} 25. Rxg5 {[%clk 0:00:27]}  Qxg5+ {[%clk 0:01:15]} 26. Kf1 {[%clk 0:00:27]}  Qe5 {[%clk 0:00:45]} 27. Rd5 {[%clk 0:00:16]}  Qe4 {[%clk 0:00:46]} 28. Rd4 {[%clk 0:00:16]}  Qb1+ {[%clk 0:00:39]} 29. Kg2 {[%clk 0:00:16]}  Re5 {[%clk 0:00:38]} 30. Rf4 {[%clk 0:00:13]}  Rg5+ {[%clk 0:00:38]} 31. Kf3 {[%clk 0:00:07]}  Rf5 {[%clk 0:00:36]} 32. Rxf5 {[%clk 0:00:07]}  gxf5 {[%clk 0:00:37]} 33. Kf4 {[%clk 0:00:07]}  Qe4+ {[%clk 0:00:35]} 34. Kg5 {[%clk 0:00:07]}  Qxc4 {[%clk 0:00:19]} 35. Qd8+ {[%clk 0:00:06]}  Kg7 {[%clk 0:00:20]} 36. Qf6+ {[%clk 0:00:06]}  Kg8 {[%clk 0:00:19]} 37. Qd8+ {[%clk 0:00:02]}  Kg7 {[%clk 0:00:20]} 38. Qf6+ {[%clk 0:00:03]}  Kf8 {[%clk 0:00:20]} 39. Qd8+ {[%clk 0:00:03]}  Kg7 {[%clk 0:00:20]} 1/2-1/2


[Site "https://www.chess.com"]

[Event "Titled Tuesday Blitz October 04 Early 2022"]
[White "Sadubayev, Airat"]
[Black "Tang, Andrew"]
[WhiteFideId "13713264"]
[BlackFideId "2059630"]
[WhiteElo "2215"]
[BlackElo "2581"]
[Result "0-1"]
[Round "02"]
[TimeControl "180+1"]
[Date "2022.10.04"]
[WhiteClock "0:00:02"]
[BlackClock "0:00:07"]

1. d4 {[%clk 0:03:00]}  d5 {[%clk 0:02:59]} 2. c4 {[%clk 0:03:00]}  e6 {[%clk 0:02:59]} 3. Nf3 {[%clk 0:02:59]}  Nf6 {[%clk 0:02:58]} 4. g3 {[%clk 0:03:00]}  dxc4 {[%clk 0:02:57]} 5. Bg2 {[%clk 0:03:00]}  Nc6 {[%clk 0:02:55]} 6. Qa4 {[%clk 0:02:59]}  Bd7 {[%clk 0:02:55]} 7. Qxc4 {[%clk 0:02:58]}  Na5 {[%clk 0:02:55]} 8. Qc2 {[%clk 0:02:57]}  Rc8 {[%clk 0:02:53]} 9. O-O {[%clk 0:02:48]}  c5 {[%clk 0:02:50]} 10. Nc3 {[%clk 0:02:47]}  b5 {[%clk 0:02:49]} 11. Qd1 {[%clk 0:02:37]}  b4 {[%clk 0:02:14]} 12. Nb1 {[%clk 0:02:34]}  Bb5 {[%clk 0:01:41]} 13. b3 {[%clk 0:02:17]}  Be7 {[%clk 0:01:34]} 14. Bb2 {[%clk 0:02:07]}  c4 {[%clk 0:01:20]} 15. bxc4 {[%clk 0:02:06]}  Nxc4 {[%clk 0:01:21]} 16. Bc1 {[%clk 0:01:58]}  O-O {[%clk 0:01:19]} 17. Nbd2 {[%clk 0:01:57]}  Nd5 {[%clk 0:01:14]} 18. Nxc4 {[%clk 0:01:52]}  Nc3 {[%clk 0:01:13]} 19. Qd2 {[%clk 0:01:51]}  Bxc4 {[%clk 0:01:12]} 20. Re1 {[%clk 0:01:48]}  Bf6 {[%clk 0:01:05]} 21. a3 {[%clk 0:01:35]}  a5 {[%clk 0:01:00]} 22. axb4 {[%clk 0:01:34]}  axb4 {[%clk 0:01:01]} 23. Bb2 {[%clk 0:01:32]}  Qb6 {[%clk 0:00:47]} 24. e3 {[%clk 0:01:23]}  Bd5 {[%clk 0:00:42]} 25. Rec1 {[%clk 0:01:11]}  Ne4 {[%clk 0:00:36]} 26. Qe1 {[%clk 0:01:06]}  b3 {[%clk 0:00:28]} 27. Nd2 {[%clk 0:00:53]}  Nxd2 {[%clk 0:00:26]} 28. Qxd2 {[%clk 0:00:53]}  Qb7 {[%clk 0:00:20]} 29. Bxd5 {[%clk 0:00:47]}  Qxd5 {[%clk 0:00:21]} 30. Rxc8 {[%clk 0:00:43]}  Rxc8 {[%clk 0:00:20]} 31. Rc1 {[%clk 0:00:43]}  Ra8 {[%clk 0:00:20]} 32. Qc3 {[%clk 0:00:38]}  h5 {[%clk 0:00:19]} 33. h4 {[%clk 0:00:36]}  Ra2 {[%clk 0:00:19]} 34. Rb1 {[%clk 0:00:33]}  Be7 {[%clk 0:00:17]} 35. Qd3 {[%clk 0:00:22]}  f5 {[%clk 0:00:12]} 36. Bc1 {[%clk 0:00:18]}  Qf3 {[%clk 0:00:09]} 37. Bd2 {[%clk 0:00:16]}  Bb4 {[%clk 0:00:08]} 38. Qxb3 {[%clk 0:00:02]}  Rxd2 {[%clk 0:00:07]} 39. Qxe6+ {[%clk 0:00:02]}  Kh7 {[%clk 0:00:07]} 0-1


[Site "https://www.chess.com"]

[Event "Titled Tuesday Blitz October 04 Early 2022"]
[White "Sarana, Alexey"]
[Black "Piesik, Piotr"]
[WhiteFideId "24133795"]
[BlackFideId "1136194"]
[WhiteElo "2689"]
[BlackElo "2323"]
[Result "1-0"]
[Round "02"]
[TimeControl "180+1"]
[Date "2022.10.04"]
[WhiteClock "0:01:00"]
[BlackClock "0:01:43"]

1. c4 {[%clk 0:03:00]}  g6 {[%clk 0:02:54]} 2. Nc3 {[%clk 0:03:01]}  Bg7 {[%clk 0:02:55]} 3. d4 {[%clk 0:02:59]}  d6 {[%clk 0:02:55]} 4. e4 {[%clk 0:02:59]}  Nc6 {[%clk 0:02:54]} 5. Be3 {[%clk 0:02:57]}  e5 {[%clk 0:02:54]} 6. d5 {[%clk 0:02:57]}  Nd4 {[%clk 0:02:54]} 7. Nge2 {[%clk 0:02:58]}  Nxe2 {[%clk 0:02:53]} 8. Bxe2 {[%clk 0:02:58]}  h5 {[%clk 0:02:52]} 9. c5 {[%clk 0:02:56]}  Bh6 {[%clk 0:02:52]} 10. cxd6 {[%clk 0:02:49]}  Bxe3 {[%clk 0:02:45]} 11. dxc7 {[%clk 0:01:55]}  Bxf2+ {[%clk 0:02:41]} 12. Kxf2 {[%clk 0:01:55]}  Qxc7 {[%clk 0:02:39]} 13. Qd2 {[%clk 0:01:56]}  Nf6 {[%clk 0:02:35]} 14. Rhf1 {[%clk 0:01:56]}  O-O {[%clk 0:02:22]} 15. Kg1 {[%clk 0:01:55]}  Ne8 {[%clk 0:02:20]} 16. Kh1 {[%clk 0:01:51]}  Bd7 {[%clk 0:02:17]} 17. Qh6 {[%clk 0:01:24]}  Ng7 {[%clk 0:02:09]} 18. d6 {[%clk 0:01:16]}  Qxd6 {[%clk 0:01:58]} 19. Rad1 {[%clk 0:01:16]}  Qe6 {[%clk 0:01:50]} 20. Nd5 {[%clk 0:01:14]}  Ne8 {[%clk 0:01:49]} 21. Bc4 {[%clk 0:01:03]}  Bc6 {[%clk 0:01:43]} 22. Nf6+ {[%clk 0:01:01]}  Qxf6 {[%clk 0:01:42]} 23. Rxf6 {[%clk 0:01:00]}  Nxf6 {[%clk 0:01:43]} 24. Qxg6+ {[%clk 0:01:00]} 1-0


[Site "https://www.chess.com"]

[Event "Titled Tuesday Blitz October 04 Early 2022"]
[White "Shubin, Kirill"]
[Black "Mihajlov, Sebastian"]
[WhiteFideId "34119962"]
[BlackFideId "1512110"]
[WhiteElo "2416"]
[BlackElo "2464"]
[Result "0-1"]
[Round "02"]
[TimeControl "180+1"]
[Date "2022.10.04"]
[WhiteClock "0:02:32"]
[BlackClock "0:02:33"]

1. e4 {[%clk 0:03:00]}  e6 {[%clk 0:02:59]} 2. d4 {[%clk 0:03:00]}  d5 {[%clk 0:03:00]} 3. Nc3 {[%clk 0:03:01]}  Nf6 {[%clk 0:03:00]} 4. Bg5 {[%clk 0:03:01]}  Bb4 {[%clk 0:02:59]} 5. e5 {[%clk 0:03:01]}  h6 {[%clk 0:02:58]} 6. Be3 {[%clk 0:03:01]}  Ne4 {[%clk 0:02:57]} 7. Qg4 {[%clk 0:02:59]}  g5 {[%clk 0:02:55]} 8. Bd3 {[%clk 0:02:50]}  Nxc3 {[%clk 0:02:46]} 9. Bd2 {[%clk 0:02:41]}  h5 {[%clk 0:02:37]} 10. Qg3 {[%clk 0:02:32]}  Ne4 {[%clk 0:02:33]} 0-1


[Site "https://www.chess.com"]

[Event "Titled Tuesday Blitz October 04 Early 2022"]
[White "Solovchuk, Oleksiy"]
[Black "Moroni, Luca Jr"]
[WhiteFideId "14115220"]
[BlackFideId "865834"]
[WhiteElo "2290"]
[BlackElo "2573"]
[Result "0-1"]
[Round "02"]
[TimeControl "180+1"]
[Date "2022.10.04"]
[WhiteClock "0:00:19"]
[BlackClock "0:01:08"]

1. c4 {[%clk 0:03:00]}  d6 {[%clk 0:03:00]} 2. Nc3 {[%clk 0:03:00]}  g6 {[%clk 0:03:00]} 3. g3 {[%clk 0:02:59]}  Bg7 {[%clk 0:03:01]} 4. Bg2 {[%clk 0:03:00]}  Nc6 {[%clk 0:03:02]} 5. Nf3 {[%clk 0:02:59]}  Bd7 {[%clk 0:03:02]} 6. d4 {[%clk 0:02:59]}  Qc8 {[%clk 0:03:03]} 7. h3 {[%clk 0:02:58]}  Nf6 {[%clk 0:03:01]} 8. d5 {[%clk 0:02:57]}  Nd8 {[%clk 0:03:01]} 9. e4 {[%clk 0:02:55]}  O-O {[%clk 0:03:00]} 10. e5 {[%clk 0:02:49]}  Ne8 {[%clk 0:02:59]} 11. Bf4 {[%clk 0:02:45]}  c6 {[%clk 0:02:54]} 12. Qd2 {[%clk 0:02:36]}  cxd5 {[%clk 0:02:51]} 13. Nxd5 {[%clk 0:02:36]}  Nc6 {[%clk 0:02:47]} 14. exd6 {[%clk 0:02:34]}  Nxd6 {[%clk 0:02:45]} 15. Nxe7+ {[%clk 0:02:34]}  Nxe7 {[%clk 0:02:46]} 16. Bxd6 {[%clk 0:02:34]}  Re8 {[%clk 0:02:45]} 17. O-O {[%clk 0:02:33]}  Bxh3 {[%clk 0:02:43]} 18. Rae1 {[%clk 0:02:10]}  Bxg2 {[%clk 0:02:38]} 19. Kxg2 {[%clk 0:02:11]}  Nf5 {[%clk 0:02:38]} 20. c5 {[%clk 0:01:54]}  Qc6 {[%clk 0:02:35]} 21. Rxe8+ {[%clk 0:01:42]}  Rxe8 {[%clk 0:02:36]} 22. b4 {[%clk 0:01:27]}  Nd4 {[%clk 0:01:59]} 23. Qd3 {[%clk 0:01:27]}  a6 {[%clk 0:01:59]} 24. a4 {[%clk 0:01:01]}  g5 {[%clk 0:01:49]} 25. g4 {[%clk 0:00:42]}  h5 {[%clk 0:01:49]} 26. Kg3 {[%clk 0:00:26]}  h4+ {[%clk 0:01:47]} 27. Kg2 {[%clk 0:00:25]}  f5 {[%clk 0:01:07]} 28. b5 {[%clk 0:00:21]}  axb5 {[%clk 0:01:07]} 29. axb5 {[%clk 0:00:19]}  Qd5 {[%clk 0:01:08]} 0-1


[Site "https://www.chess.com"]